[Event "*** Titled Tuesday Blitz"]
[Site "Chess.com"]
[Date "2021.04.27"]
[Round "3"]
[White "HouseOfDurin"]
[Black "Redzishchess"]
[Result "1-0"]
[WhiteElo "2127"]
[BlackElo "2300"]
[TimeControl "180+1"]
[EndTime "10:28:13 PDT"]
[Termination "HouseOfDurin won by resignation"]

1. d4 {[%clk 0:03:00.9]} 1... Nf6 {[%clk 0:02:59.9]} 2. Bg5 {[%clk 0:03:01.4]}
2... d5 {[%clk 0:02:58.5]} 3. Bxf6 {[%clk 0:03:01.3]} 3... exf6 {[%clk
0:02:59.4]} 4. e3 {[%clk 0:03:01.8]} 4... Bd6 {[%clk 0:02:59]} 5. c4 {[%clk
0:03:02.3]} 5... dxc4 {[%clk 0:02:58.9]} 6. Bxc4 {[%clk 0:03:03.2]} 6... f5
{[%clk 0:02:59.3]} 7. Nc3 {[%clk 0:03:03.4]} 7... O-O {[%clk 0:02:59.6]} 8. g3
{[%clk 0:03:03.4]} 8... Nd7 {[%clk 0:03:00.3]} 9. Bd5 {[%clk 0:03:03.3]} 9...
Nf6 {[%clk 0:02:56.8]} 10. Bg2 {[%clk 0:03:02.8]} 10... c6 {[%clk 0:02:53.8]}
11. Nge2 {[%clk 0:03:02.9]} 11... Re8 {[%clk 0:02:48.2]} 12. Qc2 {[%clk
0:03:02.3]} 12... Be6 {[%clk 0:02:41.5]} 13. O-O {[%clk 0:02:58.9]} 13... Rc8
{[%clk 0:02:35.6]} 14. Rfd1 {[%clk 0:02:56]} 14... Qe7 {[%clk 0:02:23]} 15. a3
{[%clk 0:02:54.6]} 15... g6 {[%clk 0:01:35.1]} 16. b4 {[%clk 0:02:53.3]} 16...
Kg7 {[%clk 0:01:29.1]} 17. Rac1 {[%clk 0:02:46]} 17... a5 {[%clk 0:01:28.4]} 18.
bxa5 {[%clk 0:02:31.6]} 18... Bxa3 {[%clk 0:01:27.2]} 19. Rb1 {[%clk 0:02:31.3]}
19... Ra8 {[%clk 0:01:16.8]} 20. d5 {[%clk 0:02:14.1]} 20... cxd5 {[%clk
0:01:09.5]} 21. Nxd5 {[%clk 0:02:15]} 21... Nxd5 {[%clk 0:01:06.6]} 22. Bxd5
{[%clk 0:02:15.9]} 22... Rxa5 {[%clk 0:00:37.5]} 23. Rxb7 {[%clk 0:02:07.8]}
23... Qf6 {[%clk 0:00:35.9]} 24. Bxe6 {[%clk 0:01:55.2]} 24... Rxe6 {[%clk
0:00:36.8]} 25. Rdd7 {[%clk 0:01:53.9]} 25... Re7 {[%clk 0:00:24.7]} 26. Rxe7
{[%clk 0:01:49.3]} 26... Bxe7 {[%clk 0:00:25.6]} 27. Kg2 {[%clk 0:01:15.5]}
27... Rc5 {[%clk 0:00:20.6]} 28. Qb3 {[%clk 0:01:07.1]} 28... Bd6 {[%clk
0:00:11.2]} 29. Nd4 {[%clk 0:01:02.2]} 29... Rc7 {[%clk 0:00:08.4]} 30. Rb5
{[%clk 0:00:43.6]} 30... Be5 {[%clk 0:00:05.8]} 31. Qd5 {[%clk 0:00:33.5]} 31...
Bxd4 {[%clk 0:00:05.5]} 32. exd4 {[%clk 0:00:34.4]} 32... Qe6 {[%clk 0:00:03.2]}
33. Qf3 {[%clk 0:00:19.2]} 33... Rc2 {[%clk 0:00:02]} 34. d5 {[%clk 0:00:18.2]}
34... Qd6 {[%clk 0:00:01.7]} 35. Rb3 {[%clk 0:00:12.9]} 35... Rd2 {[%clk
0:00:02.1]} 36. Qc3+ {[%clk 0:00:12.6]} 1-0

[Event "*** Titled Tuesday Blitz"]
[Site "Chess.com"]
[Date "2021.04.27"]
[Round "3"]
[White "sergiochess83"]
[Black "Aygehovit1992"]
[Result "1-0"]
[WhiteElo "2889"]
[BlackElo "2646"]
[TimeControl "180+1"]
[EndTime "10:28:14 PDT"]
[Termination "sergiochess83 won on time"]

1. e4 {[%clk 0:03:00.9]} 1... d6 {[%clk 0:03:00.9]} 2. d4 {[%clk 0:02:59.6]}
2... g6 {[%clk 0:03:01.8]} 3. Nf3 {[%clk 0:02:58]} 3... Bg7 {[%clk 0:03:01.3]}
4. Bc4 {[%clk 0:02:58.6]} 4... Nf6 {[%clk 0:02:55.3]} 5. Qe2 {[%clk 0:02:58.1]}
5... c6 {[%clk 0:02:54.2]} 6. Bb3 {[%clk 0:02:57.6]} 6... O-O {[%clk 0:02:53.1]}
7. O-O {[%clk 0:02:57.2]} 7... Bg4 {[%clk 0:02:52.6]} 8. Nbd2 {[%clk 0:02:56.7]}
8... Nbd7 {[%clk 0:02:50.4]} 9. h3 {[%clk 0:02:39.3]} 9... Bxf3 {[%clk
0:02:50.3]} 10. Nxf3 {[%clk 0:02:40.2]} 10... e5 {[%clk 0:02:50]} 11. dxe5
{[%clk 0:02:36]} 11... dxe5 {[%clk 0:02:50.9]} 12. c3 {[%clk 0:02:15.8]} 12...
Qe7 {[%clk 0:02:50.9]} 13. Bc2 {[%clk 0:02:04.8]} 13... Nh5 {[%clk 0:02:40.5]}
14. g3 {[%clk 0:02:03.5]} 14... a5 {[%clk 0:02:40.3]} 15. a4 {[%clk 0:01:59.6]}
15... Nc5 {[%clk 0:02:36.5]} 16. Be3 {[%clk 0:01:56]} 16... b6 {[%clk
0:02:31.1]} 17. Nd2 {[%clk 0:01:54.8]} 17... Rab8 {[%clk 0:02:13]} 18. Nc4
{[%clk 0:01:45.5]} 18... Bf6 {[%clk 0:02:05.1]} 19. h4 {[%clk 0:01:22]} 19...
Bxh4 {[%clk 0:01:49.5]} 20. gxh4 {[%clk 0:01:20.6]} 20... Qxh4 {[%clk
0:01:50.2]} 21. Qf3 {[%clk 0:01:18.1]} 21... f5 {[%clk 0:01:34.1]} 22. Nxe5
{[%clk 0:01:03.8]} 22... Rbe8 {[%clk 0:01:02.5]} 23. Bd4 {[%clk 0:00:59.2]}
23... Rxe5 {[%clk 0:00:57.6]} 24. Bxe5 {[%clk 0:00:53]} 24... f4 {[%clk
0:00:54.7]} 25. Bd6 {[%clk 0:00:35.2]} 25... g5 {[%clk 0:00:44.2]} 26. Qh1
{[%clk 0:00:31.3]} 26... Qg4+ {[%clk 0:00:35.8]} 27. Qg2 {[%clk 0:00:31.3]}
27... Qh4 {[%clk 0:00:34]} 28. Bxf8 {[%clk 0:00:31.3]} 28... Kxf8 {[%clk
0:00:34.9]} 29. Bd1 {[%clk 0:00:29.7]} 29... Nf6 {[%clk 0:00:12.8]} 30. e5
{[%clk 0:00:29.8]} 30... Nfe4 {[%clk 0:00:12.1]} 31. Qh2 {[%clk 0:00:29.6]}
31... Qxh2+ {[%clk 0:00:05.7]} 32. Kxh2 {[%clk 0:00:29.3]} 32... Nd2 {[%clk
0:00:06.6]} 33. Rg1 {[%clk 0:00:23.9]} 33... h6 {[%clk 0:00:06.6]} 34. Bc2
{[%clk 0:00:20.7]} 34... Ke7 {[%clk 0:00:05.6]} 35. Rad1 {[%clk 0:00:18.9]}
35... Nf3+ {[%clk 0:00:05.7]} 36. Kg2 {[%clk 0:00:19.3]} 36... Nxg1 {[%clk
0:00:05]} 37. Rxg1 {[%clk 0:00:19.2]} 37... Ke6 {[%clk 0:00:05.6]} 38. Rh1
{[%clk 0:00:19.5]} 1-0

[Event "*** Titled Tuesday Blitz"]
[Site "Chess.com"]
[Date "2021.04.27"]
[Round "3"]
[White "UKR_Master"]
[Black "Jungle_Jaguar"]
[Result "0-1"]
[WhiteElo "2484"]
[BlackElo "2705"]
[TimeControl "180+1"]
[EndTime "10:28:17 PDT"]
[Termination "Jungle_Jaguar won by checkmate"]

1. e4 {[%clk 0:03:00.9]} 1... e5 {[%clk 0:02:58.5]} 2. Nf3 {[%clk 0:03:01.1]}
2... Nc6 {[%clk 0:02:58.4]} 3. Bb5 {[%clk 0:03:01.7]} 3... a6 {[%clk 0:02:57.7]}
4. Ba4 {[%clk 0:03:02.1]} 4... Nf6 {[%clk 0:02:58.1]} 5. O-O {[%clk 0:03:02.7]}
5... Be7 {[%clk 0:02:58.2]} 6. Re1 {[%clk 0:03:03.3]} 6... b5 {[%clk 0:02:58.6]}
7. Bb3 {[%clk 0:03:03.9]} 7... O-O {[%clk 0:02:58.7]} 8. d4 {[%clk 0:03:02.7]}
8... d6 {[%clk 0:02:37.2]} 9. c3 {[%clk 0:03:01.8]} 9... Bg4 {[%clk 0:02:35]}
10. Be3 {[%clk 0:03:02]} 10... exd4 {[%clk 0:02:19.8]} 11. cxd4 {[%clk 0:03:00]}
11... Na5 {[%clk 0:02:20]} 12. Bc2 {[%clk 0:03:00.6]} 12... Nc4 {[%clk 0:02:20]}
13. Bc1 {[%clk 0:03:01.2]} 13... Re8 {[%clk 0:02:19.8]} 14. b3 {[%clk
0:03:01.7]} 14... Nb6 {[%clk 0:02:20]} 15. h3 {[%clk 0:02:59]} 15... Bh5 {[%clk
0:02:20]} 16. a4 {[%clk 0:02:38.1]} 16... bxa4 {[%clk 0:02:17.3]} 17. Nc3 {[%clk
0:02:38.5]} 17... axb3 {[%clk 0:02:16.3]} 18. Bxb3 {[%clk 0:02:39.4]} 18... Qd7
{[%clk 0:02:13.1]} 19. Ba2 {[%clk 0:02:17.3]} 19... h6 {[%clk 0:02:10.5]} 20.
Qb3 {[%clk 0:02:17.1]} 20... Bf8 {[%clk 0:02:03.3]} 21. Nh4 {[%clk 0:02:08.4]}
21... Rab8 {[%clk 0:01:36.6]} 22. Qc2 {[%clk 0:02:08.2]} 22... c5 {[%clk
0:01:32.7]} 23. dxc5 {[%clk 0:02:01.5]} 23... dxc5 {[%clk 0:01:33]} 24. e5
{[%clk 0:02:02]} 24... Nfd5 {[%clk 0:01:21.8]} 25. Nxd5 {[%clk 0:02:00]} 25...
Nxd5 {[%clk 0:01:22.4]} 26. Qd3 {[%clk 0:01:29]} 26... Rbd8 {[%clk 0:00:59.7]}
27. g4 {[%clk 0:01:28.9]} 27... Be7 {[%clk 0:00:46.8]} 28. Nf5 {[%clk
0:01:17.1]} 28... Bg6 {[%clk 0:00:47]} 29. Qf3 {[%clk 0:00:56.3]} 29... Nb4
{[%clk 0:00:42.6]} 30. Bxh6 {[%clk 0:00:35.9]} 30... Nxa2 {[%clk 0:00:36.6]} 31.
Nxg7 {[%clk 0:00:36.2]} 31... Nb4 {[%clk 0:00:28.6]} 32. Nxe8 {[%clk 0:00:23.3]}
32... Qxe8 {[%clk 0:00:28.9]} 33. e6 {[%clk 0:00:19.9]} 33... f6 {[%clk
0:00:28.7]} 34. Rad1 {[%clk 0:00:13.9]} 34... Nc2 {[%clk 0:00:26]} 35. Rxd8
{[%clk 0:00:10.2]} 35... Qxd8 {[%clk 0:00:26.9]} 36. Rd1 {[%clk 0:00:10.6]}
36... Nd4 {[%clk 0:00:26.3]} 37. Qa3 {[%clk 0:00:10.4]} 37... Ne2+ {[%clk
0:00:25.1]} 38. Kg2 {[%clk 0:00:10.9]} 38... Qxd1 {[%clk 0:00:24.7]} 39. Qxa6
{[%clk 0:00:11.6]} 39... Qd5+ {[%clk 0:00:24.7]} 40. Kf1 {[%clk 0:00:11.6]}
40... Nd4 {[%clk 0:00:21.7]} 41. Qc8+ {[%clk 0:00:11]} 41... Kh7 {[%clk
0:00:21.5]} 42. Be3 {[%clk 0:00:10.9]} 42... Qh1# {[%clk 0:00:21.5]} 0-1

[Event "*** Titled Tuesday Blitz"]
[Site "Chess.com"]
[Date "2021.04.27"]
[Round "3"]
[White "Matensien"]
[Black "esrosenberg"]
[Result "0-1"]
[WhiteElo "2352"]
[BlackElo "2214"]
[TimeControl "180+1"]
[EndTime "10:28:17 PDT"]
[Termination "esrosenberg won on time"]

1. c4 {[%clk 0:03:00.9]} 1... e5 {[%clk 0:02:59]} 2. g3 {[%clk 0:02:58.7]} 2...
Nc6 {[%clk 0:02:58.8]} 3. Bg2 {[%clk 0:02:59]} 3... f5 {[%clk 0:02:56.7]} 4. Nc3
{[%clk 0:02:57.9]} 4... Nf6 {[%clk 0:02:57.2]} 5. Nf3 {[%clk 0:02:56.2]} 5...
Bb4 {[%clk 0:02:56.4]} 6. Nd5 {[%clk 0:02:54.6]} 6... Bc5 {[%clk 0:02:49.6]} 7.
O-O {[%clk 0:02:54.5]} 7... O-O {[%clk 0:02:43.2]} 8. Nxe5 {[%clk 0:02:54.4]}
8... Nxe5 {[%clk 0:02:38.4]} 9. d4 {[%clk 0:02:54.1]} 9... Bd6 {[%clk
0:02:01.9]} 10. Nxf6+ {[%clk 0:02:48.1]} 10... Qxf6 {[%clk 0:01:53]} 11. dxe5
{[%clk 0:02:48.4]} 11... Bxe5 {[%clk 0:01:52.9]} 12. Qb3 {[%clk 0:02:44.9]}
12... c6 {[%clk 0:01:48.3]} 13. Rd1 {[%clk 0:02:42.5]} 13... f4 {[%clk
0:01:36.3]} 14. g4 {[%clk 0:02:27.4]} 14... Qh4 {[%clk 0:01:15.3]} 15. h3 {[%clk
0:02:11.2]} 15... d6 {[%clk 0:00:55.4]} 16. c5+ {[%clk 0:02:09]} 16... d5 {[%clk
0:00:46.6]} 17. Bd2 {[%clk 0:01:18.1]} 17... h5 {[%clk 0:00:35.4]} 18. f3 {[%clk
0:01:13]} 18... Bd4+ {[%clk 0:00:28.5]} 19. Kh1 {[%clk 0:00:49.2]} 19... Bxc5
{[%clk 0:00:24.9]} 20. Be1 {[%clk 0:00:45.4]} 20... Bf2 {[%clk 0:00:24.7]} 21.
Bxf2 {[%clk 0:00:36.2]} 21... Qxf2 {[%clk 0:00:24.3]} 22. Qd3 {[%clk 0:00:36.3]}
22... hxg4 {[%clk 0:00:22]} 23. fxg4 {[%clk 0:00:36.5]} 23... Qe3 {[%clk
0:00:17.9]} 24. Qg6 {[%clk 0:00:23.2]} 24... Qe6 {[%clk 0:00:16.5]} 25. Qh5
{[%clk 0:00:16.1]} 25... Bd7 {[%clk 0:00:14.4]} 26. Rxd5 {[%clk 0:00:13.8]}
26... Be8 {[%clk 0:00:12.8]} 27. Re5 {[%clk 0:00:07.1]} 27... Qf7 {[%clk
0:00:09.9]} 28. Qxf7+ {[%clk 0:00:05.6]} 28... Bxf7 {[%clk 0:00:10]} 29. Re7
{[%clk 0:00:03.6]} 29... Rae8 {[%clk 0:00:09.6]} 30. Rxb7 {[%clk 0:00:02.2]}
30... Rxe2 {[%clk 0:00:10.1]} 31. Rxa7 {[%clk 0:00:02.2]} 31... Bd5 {[%clk
0:00:09.6]} 32. Rg1 {[%clk 0:00:02.1]} 32... f3 {[%clk 0:00:08.7]} 33. Bxf3
{[%clk 0:00:01.8]} 33... Rxf3 {[%clk 0:00:08]} 34. Re1 {[%clk 0:00:01.1]} 34...
Rxe1+ {[%clk 0:00:07.7]} 35. Kg2 {[%clk 0:00:01.1]} 35... Re2+ {[%clk
0:00:06.9]} 0-1

[Event "*** Titled Tuesday Blitz"]
[Site "Chess.com"]
[Date "2021.04.27"]
[Round "3"]
[White "chessdjw"]
[Black "mjray79"]
[Result "1-0"]
[WhiteElo "2731"]
[BlackElo "2447"]
[TimeControl "180+1"]
[EndTime "10:28:18 PDT"]
[Termination "chessdjw won by resignation"]

1. e4 {[%clk 0:03:00.9]} 1... e5 {[%clk 0:02:59.9]} 2. Bc4 {[%clk 0:03:00.8]}
2... Nf6 {[%clk 0:02:59.3]} 3. d3 {[%clk 0:03:01]} 3... Bc5 {[%clk 0:02:58.6]}
4. Nc3 {[%clk 0:02:55.2]} 4... Nc6 {[%clk 0:02:58.2]} 5. f4 {[%clk 0:02:52.4]}
5... d6 {[%clk 0:02:53.6]} 6. Nf3 {[%clk 0:02:47.6]} 6... O-O {[%clk 0:02:46.9]}
7. f5 {[%clk 0:02:47]} 7... Kh8 {[%clk 0:02:23.9]} 8. Bg5 {[%clk 0:02:43]} 8...
Ne7 {[%clk 0:02:21.5]} 9. Qd2 {[%clk 0:02:31.9]} 9... c6 {[%clk 0:02:20.6]} 10.
Bb3 {[%clk 0:02:24.5]} 10... b5 {[%clk 0:02:18.3]} 11. a4 {[%clk 0:01:47.2]}
11... b4 {[%clk 0:02:05.3]} 12. Ne2 {[%clk 0:01:46.7]} 12... Qc7 {[%clk
0:01:52]} 13. O-O-O {[%clk 0:01:41.1]} 13... d5 {[%clk 0:01:42.5]} 14. Nxe5
{[%clk 0:01:33.2]} 14... dxe4 {[%clk 0:01:33]} 15. d4 {[%clk 0:01:03.4]} 15...
Ned5 {[%clk 0:01:24.3]} 16. Nxc6 {[%clk 0:00:32]} 16... Bd6 {[%clk 0:01:12.9]}
17. Ne5 {[%clk 0:00:32.1]} 17... Bxf5 {[%clk 0:01:09.9]} 18. Rhf1 {[%clk
0:00:29.6]} 18... Bg6 {[%clk 0:01:09.9]} 19. Nf4 {[%clk 0:00:26.3]} 19... e3
{[%clk 0:00:50.6]} 20. Nfxg6+ {[%clk 0:00:25.1]} 20... fxg6 {[%clk 0:00:45.8]}
21. Bxe3 {[%clk 0:00:24.5]} 21... Ne4 {[%clk 0:00:26.1]} 22. Qd3 {[%clk
0:00:18.3]} 22... Nxe3 {[%clk 0:00:21.2]} 23. Qxe3 {[%clk 0:00:09.4]} 23... Bxe5
{[%clk 0:00:16.4]} 24. dxe5 {[%clk 0:00:07]} 24... Qxe5 {[%clk 0:00:14.1]} 25.
Rxf8+ {[%clk 0:00:04.4]} 25... Rxf8 {[%clk 0:00:15]} 26. Re1 {[%clk 0:00:04.8]}
26... Re8 {[%clk 0:00:09.1]} 27. Bf7 {[%clk 0:00:04.7]} 27... Re7 {[%clk
0:00:08.5]} 28. Bc4 {[%clk 0:00:04.8]} 28... h6 {[%clk 0:00:08.2]} 29. Bd3
{[%clk 0:00:05.1]} 29... Qg5 {[%clk 0:00:07.8]} 30. Qxg5 {[%clk 0:00:03.4]}
30... hxg5 {[%clk 0:00:08.7]} 31. Rxe4 {[%clk 0:00:03.4]} 31... Rf7 {[%clk
0:00:09.6]} 32. Re6 {[%clk 0:00:03.3]} 32... Rf1+ {[%clk 0:00:09.7]} 33. Kd2
{[%clk 0:00:03.8]} 33... Rf2+ {[%clk 0:00:10]} 34. Ke3 {[%clk 0:00:04.4]} 34...
Rxg2 {[%clk 0:00:10.3]} 35. Bxg6 {[%clk 0:00:05]} 35... Re2+ {[%clk 0:00:05.1]}
36. Kxe2 {[%clk 0:00:05]} 1-0

[Event "*** Titled Tuesday Blitz"]
[Site "Chess.com"]
[Date "2021.04.27"]
[Round "3"]
[White "GoValya"]
[Black "kaumandur01"]
[Result "0-1"]
[WhiteElo "2281"]
[BlackElo "2741"]
[TimeControl "180+1"]
[EndTime "10:28:18 PDT"]
[Termination "kaumandur01 won by resignation"]

1. d4 {[%clk 0:02:51.8]} 1... Nf6 {[%clk 0:02:59.7]} 2. g3 {[%clk 0:02:51.5]}
2... g6 {[%clk 0:02:58.5]} 3. Bg2 {[%clk 0:02:51.6]} 3... d5 {[%clk 0:02:59.4]}
4. c4 {[%clk 0:02:51.4]} 4... Bg7 {[%clk 0:03:00.3]} 5. cxd5 {[%clk 0:02:51.1]}
5... Nxd5 {[%clk 0:03:01.2]} 6. Nc3 {[%clk 0:02:50.5]} 6... Nb6 {[%clk
0:03:00.8]} 7. Nf3 {[%clk 0:02:48.5]} 7... O-O {[%clk 0:03:01.2]} 8. O-O {[%clk
0:02:48.5]} 8... Na6 {[%clk 0:02:55.6]} 9. h3 {[%clk 0:02:46.2]} 9... c5 {[%clk
0:02:55.2]} 10. e3 {[%clk 0:02:42.2]} 10... Bf5 {[%clk 0:02:52.6]} 11. e4 {[%clk
0:02:36.5]} 11... Bd7 {[%clk 0:02:52.9]} 12. d5 {[%clk 0:02:36.2]} 12... Nc4
{[%clk 0:02:45.4]} 13. Qe2 {[%clk 0:02:27.7]} 13... Ne5 {[%clk 0:02:19.9]} 14.
Nd2 {[%clk 0:02:27.3]} 14... Nb4 {[%clk 0:02:03.5]} 15. a3 {[%clk 0:02:13.8]}
15... Nc2 {[%clk 0:02:00.9]} 16. Rb1 {[%clk 0:01:49.7]} 16... Nd4 {[%clk
0:02:01]} 17. Qe3 {[%clk 0:01:43.9]} 17... Nc2 {[%clk 0:01:46.2]} 18. Qe2 {[%clk
0:01:38.7]} 18... b5 {[%clk 0:01:23.1]} 19. Nxb5 {[%clk 0:01:01.4]} 19... Qb6
{[%clk 0:01:19.6]} 20. Nc3 {[%clk 0:00:52.7]} 20... Nd4 {[%clk 0:01:19]} 21. Qe3
{[%clk 0:00:51]} 21... Nc2 {[%clk 0:01:15.4]} 22. Qe2 {[%clk 0:00:50]} 22... Nd4
{[%clk 0:01:15.8]} 23. Qe3 {[%clk 0:00:50]} 23... c4 {[%clk 0:01:05.3]} 24. Nxc4
{[%clk 0:00:30.3]} 24... Nxc4 {[%clk 0:01:04.6]} 25. Qd3 {[%clk 0:00:28.6]}
25... Rfc8 {[%clk 0:01:03.5]} 26. b3 {[%clk 0:00:26.6]} 26... Ne5 {[%clk
0:01:02.9]} 27. Qe3 {[%clk 0:00:18.3]} 27... Nef3+ {[%clk 0:01:01.7]} 28. Kh1
{[%clk 0:00:15.2]} 28... Nc2 {[%clk 0:00:44.5]} 29. Qxb6 {[%clk 0:00:12.8]}
29... axb6 {[%clk 0:00:45.4]} 30. Ne2 {[%clk 0:00:13.1]} 30... Nfd4 {[%clk
0:00:44]} 31. Nxd4 {[%clk 0:00:12.8]} 31... Nxd4 {[%clk 0:00:44.7]} 32. Be3
{[%clk 0:00:11.6]} 32... Rxa3 {[%clk 0:00:44.7]} 33. Rfc1 {[%clk 0:00:10.4]}
33... Rxc1+ {[%clk 0:00:44.4]} 34. Rxc1 {[%clk 0:00:10.6]} 34... Nb5 {[%clk
0:00:43.3]} 35. Bxb6 {[%clk 0:00:09.6]} 35... Rxb3 {[%clk 0:00:43.6]} 36. Be3
{[%clk 0:00:06.8]} 36... f5 {[%clk 0:00:42.8]} 37. exf5 {[%clk 0:00:05.1]} 37...
gxf5 {[%clk 0:00:43.7]} 38. Bg5 {[%clk 0:00:05.3]} 38... Kf8 {[%clk 0:00:43.2]}
39. Re1 {[%clk 0:00:05.5]} 39... Bf6 {[%clk 0:00:41.8]} 40. Bxf6 {[%clk
0:00:05.9]} 40... exf6 {[%clk 0:00:42.5]} 41. h4 {[%clk 0:00:06.3]} 41... Rb2
{[%clk 0:00:42.5]} 42. Kg1 {[%clk 0:00:06.2]} 42... Nd6 {[%clk 0:00:43.2]} 43.
Bf3 {[%clk 0:00:05.6]} 43... f4 {[%clk 0:00:43]} 44. Kg2 {[%clk 0:00:05.9]}
44... fxg3 {[%clk 0:00:42.7]} 45. Kxg3 {[%clk 0:00:06.2]} 45... Nf5+ {[%clk
0:00:43.4]} 46. Kf4 {[%clk 0:00:06.4]} 46... Rxf2 {[%clk 0:00:42.1]} 47. Re3
{[%clk 0:00:02.6]} 47... Nxe3 {[%clk 0:00:41.9]} 48. Kxe3 {[%clk 0:00:03.3]}
48... Rh2 {[%clk 0:00:41.9]} 0-1

[Event "*** Titled Tuesday Blitz"]
[Site "Chess.com"]
[Date "2021.04.27"]
[Round "3"]
[White "Irishchessman16"]
[Black "niki_2003"]
[Result "1-0"]
[WhiteElo "2292"]
[BlackElo "2041"]
[TimeControl "180+1"]
[EndTime "10:28:19 PDT"]
[Termination "Irishchessman16 won by checkmate"]

1. e4 {[%clk 0:03:00.9]} 1... c6 {[%clk 0:02:57.4]} 2. Nc3 {[%clk 0:02:55.4]}
2... d5 {[%clk 0:02:58]} 3. Nf3 {[%clk 0:02:56]} 3... dxe4 {[%clk 0:02:56.6]} 4.
Nxe4 {[%clk 0:02:55.6]} 4... Bf5 {[%clk 0:02:56]} 5. Ng3 {[%clk 0:02:49]} 5...
Bg6 {[%clk 0:02:56]} 6. Bc4 {[%clk 0:02:48.1]} 6... Nf6 {[%clk 0:02:52.6]} 7.
O-O {[%clk 0:02:46.4]} 7... e6 {[%clk 0:02:51.6]} 8. Ne5 {[%clk 0:02:46.4]} 8...
Bd6 {[%clk 0:02:50.4]} 9. Nxg6 {[%clk 0:02:46]} 9... hxg6 {[%clk 0:02:50.3]} 10.
d4 {[%clk 0:02:41.2]} 10... Ne4 {[%clk 0:02:22.9]} 11. Qg4 {[%clk 0:02:11.1]}
11... Rh4 {[%clk 0:02:11.2]} 12. Qf3 {[%clk 0:02:10.3]} 12... Ng5 {[%clk
0:01:09.8]} 13. Qe3 {[%clk 0:01:57.7]} 13... Bf4 {[%clk 0:01:07]} 14. Qb3 {[%clk
0:01:46]} 14... b5 {[%clk 0:00:59.6]} 15. Be2 {[%clk 0:01:41.5]} 15... Qxd4
{[%clk 0:00:48.1]} 16. a4 {[%clk 0:01:37.5]} 16... Ne4 {[%clk 0:00:38.8]} 17.
Bxf4 {[%clk 0:01:24.1]} 17... Rxf4 {[%clk 0:00:37.2]} 18. Rad1 {[%clk
0:01:16.2]} 18... Qxa4 {[%clk 0:00:24.6]} 19. Qxa4 {[%clk 0:01:08.8]} 19... bxa4
{[%clk 0:00:24.9]} 20. Bf3 {[%clk 0:00:58.4]} 20... Nxg3 {[%clk 0:00:25]} 21.
hxg3 {[%clk 0:00:58.3]} 21... Rc4 {[%clk 0:00:23.5]} 22. Rd2 {[%clk 0:00:55.3]}
22... Nd7 {[%clk 0:00:23.4]} 23. Rfd1 {[%clk 0:00:53]} 23... Rd8 {[%clk
0:00:23.8]} 24. Rd6 {[%clk 0:00:47.5]} 24... Rxc2 {[%clk 0:00:22.1]} 25. Bxc6
{[%clk 0:00:47.5]} 25... Rxc6 {[%clk 0:00:18.9]} 26. Rxc6 {[%clk 0:00:47.1]}
26... Ne5 {[%clk 0:00:18.4]} 27. Rxd8+ {[%clk 0:00:42.9]} 27... Kxd8 {[%clk
0:00:18.7]} 28. Ra6 {[%clk 0:00:40]} 28... Nc4 {[%clk 0:00:18.2]} 29. Rxa4
{[%clk 0:00:35.9]} 29... Nxb2 {[%clk 0:00:18.3]} 30. Rxa7 {[%clk 0:00:36.5]}
30... Nd3 {[%clk 0:00:18.3]} 31. Rxf7 {[%clk 0:00:35.4]} 31... Nc1 {[%clk
0:00:18.6]} 32. Rxg7 {[%clk 0:00:34.6]} 32... Ne2+ {[%clk 0:00:19.2]} 33. Kf1
{[%clk 0:00:35]} 33... Nd4 {[%clk 0:00:19.7]} 34. Rxg6 {[%clk 0:00:35.6]} 34...
Nf5 {[%clk 0:00:19.8]} 35. Rxe6 {[%clk 0:00:35.2]} 35... Kd7 {[%clk 0:00:20]}
36. Re5 {[%clk 0:00:35.5]} 36... Nd4 {[%clk 0:00:20.5]} 37. f4 {[%clk
0:00:35.6]} 37... Kc6 {[%clk 0:00:20.1]} 38. g4 {[%clk 0:00:35.2]} 38... Kd6
{[%clk 0:00:19]} 39. g5 {[%clk 0:00:35.3]} 39... Nc6 {[%clk 0:00:19.8]} 40. Re4
{[%clk 0:00:33.9]} 40... Ne7 {[%clk 0:00:20.3]} 41. Rxe7 {[%clk 0:00:33.3]}
41... Kxe7 {[%clk 0:00:20.8]} 42. f5 {[%clk 0:00:34.2]} 42... Kf7 {[%clk
0:00:21.4]} 43. g4 {[%clk 0:00:35.1]} 43... Kg8 {[%clk 0:00:21.7]} 44. Kf2
{[%clk 0:00:36]} 44... Kh8 {[%clk 0:00:22.1]} 45. Kf3 {[%clk 0:00:36.9]} 45...
Kg8 {[%clk 0:00:22.4]} 46. Kf4 {[%clk 0:00:37.8]} 46... Kh8 {[%clk 0:00:22.8]}
47. Ke5 {[%clk 0:00:38.7]} 47... Kg7 {[%clk 0:00:21.7]} 48. g6 {[%clk
0:00:39.6]} 48... Kh8 {[%clk 0:00:20.5]} 49. Kf6 {[%clk 0:00:39.9]} 49... Kg8
{[%clk 0:00:20.4]} 50. g7 {[%clk 0:00:39.9]} 50... Kh7 {[%clk 0:00:18.6]} 51.
Kf7 {[%clk 0:00:40.3]} 51... Kh6 {[%clk 0:00:18.8]} 52. g5+ {[%clk 0:00:40]}
52... Kh7 {[%clk 0:00:18.2]} 53. g8=Q# {[%clk 0:00:39.5]} 1-0